bitfinex/quotes_SOLUSD_20220129
["timestamp","ask_amount","ask_price","bid_price","bid_amount"]
[1643469252312,0.25,95.575,95.484,103.0]
[1643469252511,0.25,95.575,95.483,22.7276]
[1643469252711,15.713,95.57,95.46,12.51]
[1643469252910,2.76020569,95.569,95.46,12.51]
[1643469253112,3.01020569,95.569,95.46,12.51]
[1643469253312,2.76020569,95.568,95.471,103.0]
[1643469253511,2.76020569,95.58,95.48,12.51]
[1643469254315,2.26020569,95.58,95.481,105.7814205]
[1643469254710,2.26020569,95.58,95.482,2.5314205]
[1643469254912,0.25,95.579,95.483,0.25]
[1643469255313,41.82591532,95.581,95.483,2.7814205]
[1643469256714,41.82591532,95.581,95.493,6.0]
[1643469256916,41.82591532,95.581,95.494,103.0]
[1643469257114,4.14532856,95.601,95.504,6.0]
[1643469257315,4.14532856,95.601,95.51,12.51]
[1643469257516,24.2756,95.609,95.51,12.51]
[1643469257716,24.2756,95.609,95.511,0.25]
[1643469257916,24.2756,95.609,95.51,12.51]
[1643469258118,34.56387727,95.608,95.51,12.51]
[1643469258417,15.709,95.6,95.51,12.51]
[1643469258816,0.25,95.599,95.51,12.51]
[1643469259015,0.25,95.599,95.511,105.5314205]
[1643469259221,4.14532856,95.605,95.511,105.7814205]
[1643469259418,34.56387727,95.608,95.512,2.5314205]
[1643469259816,34.56387727,95.608,95.513,0.25]
[1643469260222,4.14532856,95.616,95.514,2.5314205]
[1643469260418,19.84632856,95.64,95.521,6.0]
[1643469260620,19.84632856,95.64,95.514,21.59736098]
[1643469260621,19.84632856,95.64,95.53,12.51]
[1643469260822,15.701,95.64,95.54,12.51]
[1643469261227,36.27968189,95.639,95.541,0.25]
[1643469261621,36.27968189,95.639,95.54,12.51]
[1643469261818,2.95669142,95.638,95.54,12.51]
[1643469262021,4.0596865,95.638,95.54,12.51]
[1643469262319,15.704,95.63,95.54,12.51]
[1643469262720,3.20669142,95.629,95.51,12.51]
[1643469262924,13.3403053,95.629,95.51,12.51]
[1643469263123,2.95669142,95.628,95.51,12.51]
[1643469263321,2.95669142,95.628,95.511,2.5314205]
[1643469263322,0.25,95.627,95.511,2.5314205]
[1643469263521,0.25,95.627,95.511,105.5314205]
[1643469263827,4.05944153,95.626,95.511,103.0]
[1643469264022,15.706,95.62,95.511,103.0]
[1643469264224,36.56297873,95.619,95.51,12.51]
[1643469264423,46.94659261,95.619,95.49,12.51]
[1643469264625,112.8,95.615,95.49,12.51]
[1643469264851,0.25,95.614,95.491,105.5314205]
[1643469265025,1.10275011,95.614,95.501,6.0]
[1643469265224,1.10275011,95.614,95.511,103.0]
[1643469265427,36.56297873,95.619,95.512,22.6637]
[1643469265623,36.56297873,95.619,95.522,6.0]
[1643469265825,36.56297873,95.619,95.53,12.51]
[1643469266625,0.25,95.618,95.53,12.51]
[1643469267426,1.40944673,95.618,95.53,12.51]
[1643469268126,1.40944673,95.618,95.531,0.25]
[1643469268926,1.15944673,95.618,95.531,103.25]
[1643469270330,1.15944673,95.618,95.532,2.5314205]
[1643469270830,1.15944673,95.618,95.533,0.25]
[1643469271136,1.15944673,95.618,95.518,2.5314205]
[1643469271331,1.15944673,95.618,95.512,22.6637]
[1643469271535,1.15944673,95.618,95.523,103.0]
[1643469271731,1.15944673,95.618,95.53,12.51]
[1643469271932,1.15944673,95.618,95.531,103.0]
[1643469272131,1.15944673,95.618,95.541,6.0]
[1643469272357,0.25,95.617,95.542,103.0]
[1643469273356,0.25,95.617,95.524,2.5314205]
[1643469273558,0.25,95.617,95.481,47.4001]
[1643469273758,0.25,95.617,95.5,12.51]
[1643469274359,15.706,95.61,95.501,103.0]
[1643469274560,15.706,95.61,95.501,105.5314205]
[1643469274759,1.15944673,95.618,95.502,2.5314205]
[1643469274963,1.15944673,95.618,95.511,6.0]
[1643469275164,1.15944673,95.618,95.52,12.51]
[1643469275360,1.15944673,95.618,95.521,47.3515]
[1643469275561,1.15944673,95.618,95.531,109.0]
[1643469275761,1.15944673,95.618,95.54,12.51]
[1643469276163,1.15944673,95.618,95.55,6.0]
[1643469276365,0.25,95.617,95.551,0.25]
[1643469276560,0.25,95.617,95.541,0.25]
[1643469276763,0.25,95.617,95.541,103.25]
[1643469276962,0.25,95.617,95.541,0.25]
[1643469277263,0.82955465,95.617,95.541,103.25]
[1643469277466,0.57955465,95.617,95.541,103.25]
[1643469278065,0.57955465,95.617,95.54,12.51]
[1643469278866,0.57955465,95.617,95.541,2.5314205]
[1643469279065,0.57955465,95.617,95.542,127.7695]
[1643469279265,0.57955465,95.617,95.543,0.25]
[1643469279467,0.57955465,95.617,95.552,6.0]
[1643469279666,0.57955465,95.617,95.56,12.51]
[1643469279866,0.57955465,95.617,95.561,0.25]
[1643469280069,0.57955465,95.617,95.561,2.7814205]
[1643469280271,0.57955465,95.617,95.56,12.51]
[1643469280968,0.57955465,95.617,95.561,103.0]
[1643469281568,0.57955465,95.617,95.562,2.7814205]
[1643469281768,0.57955465,95.617,95.562,0.25]
[1643469282572,0.58006081,95.651,95.562,0.25]
[1643469282769,0.58006081,95.651,95.571,6.0]
[1643469282970,0.58006081,95.651,95.572,103.0]
[1643469283372,0.58006081,95.651,95.573,0.25]
[1643469283571,0.58006081,95.651,95.573,2.7814205]
[1643469283972,0.58006081,95.651,95.574,2.5314205]
[1643469284371,0.58006081,95.651,95.575,0.25]
[1643469284572,0.83006081,95.651,95.575,0.25]
[1643469284771,0.58006081,95.651,95.575,2.77817851]
[1643469285576,0.58006081,95.651,95.575,0.25]
[1643469285776,0.58006081,95.651,95.572,103.0]
[1643469285777,0.58006081,95.651,95.573,0.25]
[1643469286077,0.58006081,95.651,95.572,103.0]
[1643469286676,0.58006081,95.651,95.573,2.52817851]
[1643469287276,0.58006081,95.651,95.574,0.25]
[1643469287477,0.08006081,95.651,95.574,0.25]
[1643469287681,0.08006081,95.651,95.575,2.52443217]
[1643469287877,0.08006081,95.651,95.58,12.51]
[1643469288278,0.08006081,95.651,95.581,103.25]
[1643469288878,0.08006081,95.651,95.581,0.25]
[1643469289282,0.08006081,95.651,95.58,12.51]
[1643469289579,0.08006081,95.651,95.581,103.0]
[1643469290788,0.08006081,95.651,95.582,0.25]
[1643469290986,0.08006081,95.651,95.581,0.25]
[1643469291606,0.08006081,95.651,95.581,103.25]
[1643469292410,0.08006081,95.651,95.545,2.52443217]
[1643469292411,9.36,95.651,95.545,2.52443217]
[1643469292612,9.36,95.651,95.501,46.2426]
[1643469292810,62.40479673,95.65,95.501,46.2426]
[1643469293207,4.14532856,95.648,95.501,46.2426]
[1643469293410,0.25,95.647,95.504,103.0]
[1643469293606,15.85764142,95.647,95.504,103.0]
[1643469293808,15.85764142,95.647,95.505,0.25]
[1643469293809,15.704,95.63,95.505,0.25]
[1643469294008,35.80215506,95.629,95.505,17.47413924]
[1643469294307,35.80215506,95.629,95.506,17.22413924]
[1643469294308,36.05215506,95.629,95.506,17.22413924]
[1643469294506,36.05215506,95.629,95.51,12.51]
[1643469295110,35.80215506,95.629,95.51,12.51]
[1643469295311,35.80215506,95.629,95.521,103.0]
[1643469296310,35.80215506,95.629,95.522,0.25]
[1643469296711,0.25,95.628,95.522,0.25]
[1643469296912,15.705,95.62,95.522,0.25]
[1643469297111,15.205,95.62,95.522,0.25]
[1643469297311,0.25,95.619,95.522,0.25]
[1643469298512,0.25,95.619,95.531,6.0]
[1643469298712,4.14532856,95.658,95.54,12.51]
[1643469298915,0.89,95.67,95.54,12.51]
[1643469298916,4.14532856,95.668,95.542,103.0]
[1643469299119,0.89,95.67,95.542,103.0]
[1643469299120,0.89,95.67,95.552,6.0]
[1643469299413,0.89,95.67,95.56,12.51]
[1643469299616,0.89,95.67,95.57,6.0]
[1643469299816,0.89,95.67,95.58,12.51]
[1643469300016,0.89,95.67,95.59,6.0]
[1643469300217,42.90568681,95.655,95.59,18.51]
[1643469300615,42.90568681,95.655,95.591,0.25]
[1643469300815,0.89,95.67,95.591,0.25]
[1643469301215,0.89,95.67,95.59,12.51]
[1643469301616,0.89,95.67,95.591,103.25]
[1643469301816,38.49999598,95.652,95.591,103.25]
[1643469302317,0.25,95.651,95.59,12.51]
[1643469302536,0.25,95.651,95.572,46.2855]
[1643469302716,0.53212274,95.652,95.582,6.0]
[1643469302919,0.00751948,95.657,95.583,103.0]
[1643469303120,0.00751948,95.657,95.594,103.0]
[1643469303616,0.00751948,95.657,95.604,6.0]
[1643469303819,0.00751948,95.657,95.61,12.51]
[1643469304016,1.948e-05,95.67,95.62,6.0]
[1643469304217,1.948e-05,95.67,95.63,12.51]
[1643469304417,0.217088,95.686,95.631,66.0]
[1643469304618,0.217088,95.686,95.641,6.0]
[1643469304817,0.217088,95.686,95.65,12.51]
[1643469305016,0.217088,95.686,95.651,103.0]
[1643469305218,0.434176,95.686,95.66,6.0]
[1643469305417,0.434176,95.686,95.67,12.51]
[1643469305620,0.434176,95.686,95.671,149.4733]
[1643469305817,0.434176,95.686,95.671,149.7233]
[1643469306220,7.6e-05,95.686,95.671,149.7233]
[1643469306918,7.6e-05,95.686,95.671,149.4733]
[1643469307318,7.6e-05,95.686,95.682,103.0]
[1643469307919,7.6e-05,95.686,95.683,20.97634918]
[1643469308318,7.6e-05,95.686,95.684,21.22634918]
[1643469308518,7.6e-05,95.686,95.685,169.0]
[1643469308718,7.6e-05,95.686,95.685,171.52443217]
[1643469308923,7.6e-05,95.686,95.685,171.77443217]
[1643469309520,7.6e-05,95.686,95.685,190.22634918]
[1643469311427,7.6e-05,95.686,95.685,210.40609231]
[1643469311830,7.6e-05,95.686,95.685,221.49960175]
[1643469312027,0.51553658,95.842,95.685,221.49960175]
[1643469312227,37.90342611,95.841,95.7,168.9]
[1643469312432,37.90342611,95.841,95.701,24.5813]
[1643469312630,37.90342611,95.841,95.71,6.0]
[1643469312836,37.90342611,95.841,95.72,12.51]
[1643469313025,37.90342611,95.841,95.73,18.51]
[1643469313225,37.90342611,95.841,95.741,103.0]
[1643469313431,0.51553658,95.842,95.741,103.0]
[1643469313630,0.00145518,95.784,95.752,103.0]
[1643469313826,0.00145518,95.784,95.76,12.51]
[1643469314030,0.00145518,95.784,95.77,6.0]
[1643469314230,0.00145518,95.784,95.77,18.51]
[1643469314425,0.00145518,95.784,95.771,103.25]
[1643469314637,0.00145518,95.784,95.781,6.0]
[1643469314829,0.00145518,95.784,95.782,0.25]
[1643469315027,0.00145518,95.784,95.782,109.25]
[1643469315229,20.38227041,95.779,95.77,12.51]
[1643469315428,0.00145518,95.784,95.77,12.51]
[1643469316032,0.00145518,95.784,95.78,6.0]
[1643469316830,0.00145518,95.784,95.781,22.5102]
[1643469317230,0.00145518,95.784,95.782,0.25]
[1643469317429,0.00145518,95.784,95.782,2.77437981]
[1643469317631,0.00145518,95.784,95.783,68.52400052]
[1643469317830,0.00145518,95.784,95.783,68.77400052]
[1643469318235,0.00145518,95.784,95.783,171.77400052]
[1643469318732,0.00145518,95.784,95.783,68.77400052]
[1643469318934,0.00145518,95.784,95.783,66.25]
[1643469319433,0.00145518,95.784,95.783,68.77400052]
[1643469320234,0.00145518,95.784,95.783,68.52400052]
[1643469320434,0.00145518,95.784,95.783,171.52400052]
[1643469320633,0.51553658,95.842,95.784,66.0]
[1643469320838,0.51553658,95.842,95.79,12.51]
[1643469321041,0.51553658,95.842,95.8,6.0]
[1643469321236,0.51553658,95.842,95.81,12.51]
[1643469321639,0.33145112,95.847,95.811,103.25]
[1643469321835,0.33145112,95.847,95.81,12.51]
[1643469322035,0.33145112,95.847,95.79,12.51]
[1643469322535,0.3161784,95.877,95.79,12.51]
[1643469322536,0.10387129,95.877,95.79,12.51]
[1643469323137,0.10387129,95.877,95.791,126.8067]
[1643469323336,0.10387129,95.877,95.8,6.0]
[1643469323639,0.10387129,95.877,95.791,127.0567]
[1643469323640,0.10387129,95.877,95.81,12.51]
[1643469325344,0.10387129,95.877,95.82,6.0]
[1643469325540,0.10387129,95.877,95.82,18.51]
[1643469325839,0.10387129,95.877,95.82,12.51]
[1643469326245,0.10387129,95.877,95.821,0.25]
[1643469326442,0.10387129,95.877,95.821,23.9828]
[1643469326641,0.10387129,95.877,95.82,12.51]
[1643469327644,0.10387129,95.877,95.8,12.51]
[1643469327845,0.10387129,95.877,95.772,24.9461]
[1643469327846,0.10387129,95.877,95.78,12.51]
[1643469328645,0.10387129,95.877,95.78,32.36474313]
[1643469329045,0.10387129,95.877,95.791,103.0]
[1643469329244,0.10387129,95.877,95.793,103.0]
[1643469329446,0.10387129,95.877,95.793,164.8]
[1643469329647,0.10387129,95.877,95.804,103.0]
[1643469329953,0.00387129,95.877,95.81,12.51]
[1643469330146,0.00387129,95.877,95.814,6.0]
[1643469330348,0.00387129,95.877,95.82,6.0]
[1643469330545,0.00387129,95.877,95.83,12.51]
[1643469330746,0.00387129,95.877,95.831,127.1009]
[1643469330948,0.00387129,95.877,95.831,127.3509]
[1643469331352,0.00387129,95.877,95.841,6.0]
[1643469331550,0.00387129,95.877,95.842,103.0]
[1643469331747,0.00387129,95.877,95.842,103.25]
[1643469332373,0.00387129,95.877,95.852,6.0]
[1643469332574,0.00387129,95.877,95.86,12.51]
[1643469332978,0.00387129,95.877,95.861,103.0]
[1643469333776,0.00387129,95.877,95.862,0.25]
[1643469333987,0.00387129,95.877,95.861,103.0]
[1643469334377,0.00387129,95.877,95.862,0.25]
[1643469335277,0.25,95.941,95.862,0.25]
[1643469335479,2.71872195,95.937,95.861,82.88361117]
[1643469335786,0.25,95.936,95.84,12.51]
[1643469335984,0.25,95.936,95.829,103.0]
[1643469337378,0.25,95.936,95.831,103.0]
[1643469337579,0.25,95.936,95.84,12.51]
[1643469337778,0.25,95.938,95.841,103.0]
[1643469337978,0.25,95.942,95.841,103.0]
[1643469338180,0.25,95.942,95.842,0.25]
[1643469338379,0.25,95.942,95.841,103.0]
[1643469338579,2.71872195,95.939,95.841,103.0]
[1643469338779,2.71872195,95.936,95.841,103.0]
[1643469338984,40.56789938,95.935,95.842,0.25]
[1643469339281,40.81789938,95.935,95.842,0.25]
[1643469340181,40.81789938,95.935,95.841,103.0]
[1643469340386,40.81789938,95.935,95.84,12.51]
[1643469340581,40.81789938,95.935,95.81,12.51]
[1643469340780,40.56789938,95.935,95.819,103.0]
[1643469340981,2.71872195,95.94,95.83,12.51]
[1643469341180,2.71872195,95.945,95.83,12.51]
[1643469341382,2.71872195,95.939,95.84,6.0]
[1643469341586,2.71872195,95.94,95.85,12.51]
[1643469341882,2.71872195,95.938,95.851,0.25]
[1643469342081,2.71872195,95.934,95.851,0.25]
[1643469342283,2.71872195,95.933,95.851,0.25]
[1643469342482,2.71872195,95.937,95.851,0.25]
[1643469342682,2.71872195,95.941,95.851,103.25]
[1643469342883,2.71872195,95.945,95.852,2.51368467]
[1643469343281,2.71872195,95.947,95.853,0.25]
[1643469343682,2.71872195,95.948,95.862,6.0]
[1643469343883,2.71872195,95.946,95.863,103.0]
[1643469344286,2.71872195,95.942,95.863,103.0]
[1643469344485,5.48785384,95.944,95.863,103.0]
[1643469344683,0.25,95.941,95.863,103.0]
[1643469344885,2.76913189,95.94,95.863,103.0]
[1643469345285,0.25,95.939,95.863,103.0]
[1643469345686,2.76913189,95.938,95.863,103.0]
[1643469345887,2.71872195,95.93,95.863,103.0]
[1643469346086,36.51333386,95.929,95.863,103.0]
[1643469346286,2.76913189,95.928,95.863,103.0]
[1643469346690,0.25,95.927,95.84,12.51]
[1643469346888,0.25,95.927,95.833,47.9982]
[1643469347088,2.76913189,95.926,95.834,103.0]
[1643469347293,2.71872195,95.924,95.835,0.25]
[1643469347490,2.71872195,95.916,95.835,0.25]
[1643469347690,2.71872195,95.921,95.835,0.25]
[1643469348096,2.71872195,95.923,95.835,0.25]
[1643469348291,2.71872195,95.927,95.835,0.25]
[1643469348490,5.48785384,95.928,95.835,0.25]
[1643469348695,2.71872195,95.924,95.835,0.25]
[1643469348890,2.71872195,95.924,95.834,103.0]
[1643469349293,2.71872195,95.922,95.834,103.0]
[1643469349492,2.71872195,95.916,95.834,103.0]
[1643469349691,2.71872195,95.915,95.834,103.0]
[1643469349893,0.25,95.914,95.834,103.0]
[1643469350093,2.76913189,95.913,95.834,103.0]
[1643469350292,2.71872195,95.918,95.835,0.25]
[1643469350492,2.71872195,95.914,95.835,0.25]
[1643469350695,2.71872195,95.908,95.834,0.25]
[1643469351093,2.71872195,95.908,83.736,1.02835526]
[1643469351094,48.71482343,95.907,95.783,47.0254]
[1643469351296,2.71872195,95.893,95.783,47.0254]
[1643469351496,2.71872195,95.882,95.77,12.51]
[1643469351698,2.71872195,95.882,95.771,103.0]
[1643469351898,2.71872195,95.875,95.771,103.0]
[1643469352098,34.52430483,95.872,95.772,2.4966515]
[1643469352397,2.71872195,95.891,95.774,103.0]
[1643469352602,2.71872195,95.905,95.774,103.0]
[1643469352802,2.71872195,95.904,95.776,103.0]
[1643469352997,2.71872195,95.904,95.79,12.51]
[1643469353198,41.71545973,95.904,95.791,23.4426]
[1643469353399,1.38912451,95.879,95.8,6.0]
[1643469353600,1.38912451,95.865,95.81,12.51]
[1643469353900,15.654,95.93,95.801,105.4966068]
[1643469353901,1.38912451,95.861,95.801,105.4966068]
[1643469354102,1.38912451,95.86,95.801,105.4966068]
[1643469354299,1.38912451,95.86,95.802,2.7466068]
[1643469354798,1.38912451,95.863,95.803,2.4966068]
[1643469355003,39.89617933,95.895,95.803,2.4966068]
[1643469355004,1.38912451,95.865,95.803,2.4966068]
[1643469355199,1.38912451,95.864,95.803,2.4966068]
[1643469355402,1.38912451,95.859,95.803,2.4966068]
[1643469355602,1.38912451,95.859,95.801,103.0]
[1643469355802,0.25,95.858,95.801,103.0]
[1643469356002,1.38912451,95.857,95.802,0.25]
[1643469356300,1.38912451,95.856,95.801,103.0]
[1643469356501,0.25,95.972,95.8,12.51]
[1643469356502,1.38912451,95.852,95.8,12.51]
[1643469356803,1.38912451,95.839,95.78,12.51]
[1643469357004,1.38912451,95.844,95.78,12.51]
[1643469357202,1.38912451,95.846,95.78,12.51]
[1643469357404,1.38912451,95.845,95.78,12.51]
[1643469357602,1.38912451,95.846,95.78,12.51]
[1643469357805,1.38912451,95.838,95.781,0.25]
[1643469358004,1.38912451,95.839,95.781,103.25]
[1643469358308,1.38912451,95.835,95.781,103.25]
[1643469358505,1.38912451,95.833,95.781,103.25]
[1643469358909,1.38912451,95.839,95.782,2.48955901]
[1643469359106,1.38912451,95.838,95.782,2.48955901]
[1643469359308,1.38912451,95.833,95.781,103.25]
[1643469359510,1.38912451,95.836,95.781,103.25]
[1643469360208,0.25,95.835,95.781,103.25]
[1643469360406,0.25,95.835,95.774,23.6039]
[1643469360605,1.38912451,95.838,95.774,23.6039]
[1643469360807,42.46097581,95.841,95.774,23.6039]
[1643469361008,0.25,95.837,95.775,103.0]
[1643469361406,1.63912451,95.837,95.775,103.0]
[1643469361606,1.63912451,95.837,95.774,23.6039]
[1643469362010,1.63912451,95.837,95.743,2.48955901]
[1643469362011,1.38912451,95.835,95.743,2.48955901]
[1643469362208,1.38912451,95.833,95.744,47.5992]
[1643469362409,0.25,95.837,95.745,103.0]
[1643469362410,1.38912451,95.83,95.745,103.0]
[1643469362611,1.38912451,95.829,95.744,47.5992]
[1643469362809,1.38912451,95.815,95.72,12.51]
[1643469363107,33.41936774,95.804,95.714,47.5992]
[1643469363309,33.41936774,95.804,95.71,12.51]
[1643469363310,0.25,95.803,95.71,12.51]
[1643469363508,0.25,95.803,95.681,75.8683]
[1643469363710,1.63912451,95.803,95.681,75.8683]
[1643469363914,14.21912451,95.803,95.681,75.8683]
[1643469364113,1.38912451,95.797,95.681,75.8683]
[1643469364311,0.25,95.796,95.681,75.8683]
[1643469364515,0.25,95.796,95.686,413.19154878]
[1643469364812,0.25,95.796,95.687,2.48270613]
[1643469365312,0.25,95.796,95.687,105.48270613]
[1643469365512,0.25,95.803,95.687,103.0]
[1643469365916,1.38912451,95.8,95.674,2.48270613]
[1643469366335,1.38912451,95.797,95.675,0.25]
[1643469366535,1.38912451,95.795,95.675,0.25]
[1643469366738,1.38912451,95.795,95.676,2.46876927]
[1643469366938,0.25,95.794,95.676,2.46876927]
[1643469367140,0.25,95.794,95.677,0.25]
[1643469367337,13.89912451,95.8,95.675,0.25]
[1643469367742,1.38912451,95.797,95.66,12.51]
[1643469367945,1.38912451,95.796,95.66,12.51]
[1643469368139,10.12912451,95.796,95.66,12.51]
[1643469368438,10.12912451,95.796,95.661,2.46876927]
[1643469368643,0.25,95.795,95.661,2.46876927]
[1643469368840,15.68,95.78,95.661,105.46876927]
[1643469369239,0.25,95.779,95.661,105.46876927]
[1643469369440,0.25,95.779,95.662,2.46876927]
[1643469369643,0.25,95.779,95.662,2.71876927]
[1643469370040,23.1769,95.795,95.672,6.0]
[1643469370246,23.1769,95.795,95.673,24.8026]
[1643469370443,23.1769,95.795,95.674,103.0]
[1643469370641,23.1769,95.795,95.674,105.46876927]
[1643469370845,8.74,95.796,95.675,0.25]
[1643469371041,8.74,95.796,95.675,2.71876927]
[1643469371241,8.74,95.796,95.676,2.46876927]
[1643469371442,8.74,95.796,95.68,15.672]
[1643469371847,8.74,95.796,95.681,2.71876927]
[1643469372245,0.25,95.795,95.682,2.46876927]
[1643469372644,15.677,95.79,95.67,2.46876927]
[1643469372845,0.25,95.789,95.67,2.46876927]
[1643469373043,0.25,95.789,95.681,2.46876927]
[1643469373645,15.68,95.78,95.681,2.46876927]
[1643469373845,0.25,95.779,95.681,2.46876927]
[1643469374045,0.25,95.779,95.674,103.0]
[1643469374746,0.25,95.779,95.675,2.71876927]
[1643469374945,0.25,95.795,95.675,2.46876927]
[1643469375145,0.25,95.795,95.676,2.46876927]
[1643469375548,15.678,95.79,95.676,2.46876927]
[1643469375747,15.678,95.79,95.674,103.0]
[1643469375948,0.25,95.789,95.674,103.0]
[1643469376350,0.25,95.789,95.675,0.25]
[1643469376749,0.25,95.789,95.676,2.46876927]
[1643469377148,0.25,95.789,95.677,0.25]
[1643469377552,0.25,95.789,95.678,2.46876927]
[1643469377751,0.25,95.789,95.674,103.0]
[1643469377951,15.68,95.78,95.66,12.51]
[1643469378150,15.68,95.78,95.666,103.0]
[1643469378351,0.25,95.779,95.666,103.0]
[1643469378858,0.25,95.779,95.66,12.51]
[1643469379055,46.43798616,95.759,95.653,23.3213]
[1643469379252,0.25,95.758,95.653,23.3213]
[1643469379458,0.25,95.758,95.654,103.0]
[1643469379857,0.25,95.758,95.655,0.25]
[1643469380257,0.25,95.758,95.655,2.71814569]
[1643469380454,0.25,95.758,95.654,0.25]
[1643469381057,24.3675,95.758,95.653,0.25]
[1643469381258,24.3675,95.758,95.643,0.25]
[1643469381655,24.3675,95.758,95.644,2.46814569]
[1643469382468,15.686,95.74,95.644,2.46814569]
[1643469382663,15.686,95.74,95.631,22.9788]
[1643469382862,0.25,95.739,95.631,22.9788]
[1643469383462,15.689,95.73,95.62,12.51]
[1643469383667,37.0773946,95.729,95.6,12.51]
[1643469383872,23.049,95.728,95.6,12.51]
[1643469384261,0.25,95.727,95.6,12.51]
[1643469384889,0.25,95.727,95.597,24.2467]
[1643469385590,15.695,95.71,95.58,12.51]
[1643469385787,48.5375,95.709,95.58,12.51]
[1643469386388,48.5375,95.709,95.581,0.25]
[1643469386591,48.5375,95.709,95.58,12.51]
[1643469387591,105.95669142,95.708,95.58,12.51]
[1643469387891,0.25,95.707,95.581,0.25]
[1643469388089,0.25,95.707,95.55,12.51]
[1643469388289,0.25,95.707,95.556,1.44686574]
[1643469388489,9.93895023,95.707,95.552,1.44686574]
[1643469388690,1.38912451,95.704,95.55,12.51]
[1643469388890,0.25,95.703,95.554,1.44686574]
[1643469389095,12.51,95.7,95.55,12.51]
[1643469389293,40.43281655,95.698,95.55,12.51]
[1643469389491,40.43281655,95.698,95.535,1.44686574]
[1643469389691,12.89564165,95.697,95.53,1.44686574]
[1643469389891,103.0,95.696,95.529,1.44686574]
[1643469390092,165.80593308,95.696,95.53,6.0]
[1643469390292,3.20669142,95.695,95.53,6.0]
[1643469390492,103.0,95.679,95.53,6.0]
[1643469390693,48.0535,95.678,95.531,6.0]
[1643469390892,35.71355301,95.669,95.53,6.0]
[1643469391091,35.71355301,95.669,95.52,12.51]
[1643469391291,0.25,95.668,95.52,12.51]
[1643469391691,13.38362167,95.667,95.52,12.51]
[1643469391897,0.25,95.666,95.52,12.51]
[1643469392492,28.37788871,95.665,95.52,12.51]
[1643469392693,28.37788871,95.665,95.521,2.46825189]
[1643469392891,23.2757,95.666,95.521,2.71825189]
[1643469393094,35.71355301,95.669,95.531,6.0]
[1643469393296,35.71355301,95.669,95.54,12.51]
[1643469393491,35.71355301,95.669,95.55,6.0]
[1643469393693,35.71355301,95.669,95.551,24.5426]
[1643469393891,35.71355301,95.669,95.551,24.7926]
[1643469394091,0.25,95.668,95.551,24.5426]
[1643469394294,0.25,95.668,95.552,0.25]
[1643469395298,47.8234,95.668,95.532,22.6081]
[1643469395493,32.02064483,95.667,95.532,22.6081]
[1643469395695,45.4042665,95.667,95.532,22.6081]
[1643469395897,32.27064483,95.666,95.532,22.6081]
[1643469396097,48.00289189,95.666,95.532,22.6081]
[1643469396299,29.31395341,95.666,95.532,22.6081]
[1643469396493,29.31395341,95.666,95.533,23.9383]
[1643469396896,29.31395341,95.666,95.534,0.25]
[1643469397096,19.37500318,95.665,95.534,0.25]
[1643469397294,0.25,95.664,95.534,0.25]
[1643469397899,19.37500318,95.663,95.533,23.9383]
[1643469398095,32.75862485,95.663,95.533,23.9383]
[1643469398396,32.75862485,95.663,95.52,12.51]
[1643469398397,12.51,95.66,95.51,12.51]
[1643469398595,12.51,95.66,95.5,1.44686574]
[1643469398596,12.51,95.66,95.485,1.44686574]
[1643469398798,12.51,95.66,95.481,46.4174]
[1643469398799,0.30159229,95.646,95.481,46.4174]